fUSD/lending_fUSD_20240520
["ID","MTS","AMOUNT","RATE_DAILY","PERIOD"]
[327568900,1716238239681,-314.052105,0.00021448,2]
[327568901,1716238239691,-155.79488318,0.00021588,2]
[327568902,1716238239701,-240.30107874,0.00021658,2]
[327568903,1716238239710,-219.88,0.00021673,2]
[327568904,1716238239728,-207.02210169,0.00021729,2]
[327568905,1716238239738,-314.052105,0.00021748,2]
[327568906,1716238239748,-240.30107874,0.00021833,2]
[327568907,1716238239757,-153.0641054,0.00021853,2]
[327568908,1716238239769,-3068.52,0.00021884,2]
[327568909,1716238239779,-240.30107874,0.00021887,2]
[327568910,1716238239788,-271.65175143,0.000219,2]
[327568911,1716238239817,-479.23585153,0.000219,2]
[327568912,1716238239829,-297.7266648,0.000219,2]
[327568924,1716238240668,-379.9422459,0.000219,2]
[327568925,1716238240866,-5340.94275061,0.000219,2]
[327568926,1716238240876,-500.0,0.000219,2]
[327568927,1716238240885,-191.0,0.00021918,2]
[327568928,1716238240894,-730.75,0.00021918,2]
[327568929,1716238240904,-157.855,0.00021994,2]
[327568930,1716238240913,-732.75873788,0.00022,7]
[327568931,1716238240922,-263.1548564,0.00022,2]
[327568932,1716238240932,-158.09252708,0.00022047,2]
[327568933,1716238240941,-240.30107874,0.00022057,2]
[327568934,1716238240950,-207.02210169,0.00022141,2]
[327568935,1716238240960,-152.09664863,0.00022148,2]
[327568936,1716238240972,-314.052105,0.00022148,2]
[327568937,1716238240981,-314.052105,0.00022178,2]
[327568938,1716238240991,-153.72660856,0.00022274,2]
[327568939,1716238241001,-207.02210169,0.00022347,2]
[327568940,1716238241011,-152.09664863,0.00022372,2]
[327568941,1716238241020,-314.052105,0.00022448,4]
[327568942,1716238241030,-2900.0,0.000225,15]
[327568943,1716238241039,-207.02210169,0.00022529,2]
[327568944,1716238241049,-2617.54872489,0.00022548,2]
[327568945,1716238241058,-240.30107874,0.0002255,2]
[327568946,1716238241068,-1000.0,0.00022605,2]
[327568947,1716238241078,-240.30107874,0.00022737,2]
[327568948,1716238241088,-314.052105,0.00022748,4]
[327568949,1716238241097,-207.02210169,0.00022751,2]
[327568950,1716238241106,-207.02210169,0.00022807,2]
[327568951,1716238241116,-240.30107874,0.00022836,2]
[327568952,1716238241126,-166.29644052,0.00022873,2]
[327568953,1716238241136,-207.02210169,0.00022884,2]
[327568954,1716238241146,-400.0,0.000229,8]
[327568955,1716238241156,-155.57833924,0.0002293,2]
[327568956,1716238241165,-5000.0,0.00023,2]
[327568957,1716238241175,-1800.0,0.00023,2]
[327568958,1716238241185,-167.7194358,0.00023049,2]
[327568959,1716238241194,-207.02210169,0.0002306,2]
[327568960,1716238241203,-321.27328421,0.0002312,2]
[327568961,1716238241213,-314.052105,0.00023148,4]
[327568962,1716238241225,-314.052105,0.00023178,2]
[327568963,1716238241235,-278196.50119616,0.0002322,2]
[327568964,1716238241244,-409.46596364,0.0002322,2]
[327568965,1716238241253,-1043.50527684,0.0002322,2]
[327568966,1716238241262,-180.28603728,0.0002322,2]
[327568967,1716238241272,-445.2738073,0.0002322,2]
[327568968,1716238241281,-298.86994119,0.0002322,2]
[327568969,1716238241290,-37472.32879125,0.0002322,2]
[327568970,1716238241299,-164.1962186,0.00023254,2]
[327568971,1716238241309,-240.30107874,0.00023268,2]
[327568972,1716238241318,-3846.94130324,0.000234,2]
[327568973,1716238241328,-160.03602867,0.00023435,2]
[327568974,1716238241337,-314.052105,0.00023448,4]
[327568975,1716238241347,-2537.37852407,0.00023462,28]
[327568976,1716238241356,-240.30107874,0.0002348,2]
[327568977,1716238241365,-1000.0,0.00023496,2]
[327568978,1716238241375,-164.1962186,0.00023525,2]
[327568979,1716238241384,-160.03602867,0.00023532,2]
[327568980,1716238241394,-153.72660856,0.00023585,2]
[327568981,1716238241403,-207.02210169,0.0002359,2]
[327568982,1716238241418,-207.02210169,0.00023594,2]
[327568983,1716238241427,-314.052105,0.00023748,4]
[327568984,1716238241437,-207.02210169,0.00023751,2]
[327568985,1716238241447,-166.66666667,0.0002378,2]
[327568986,1716238241457,-13527.1412,0.00023804,2]
[327568987,1716238241470,-207.02210169,0.00023918,2]
[327568988,1716238241479,-219.88,0.00023937,2]
[327568989,1716238241488,-160.50893316,0.00023956,2]
[327568990,1716238241499,-207.02210169,0.00023975,2]
[327568991,1716238241508,-31597.5092,0.00023987,2]
[327568992,1716238241518,-432.92304014,0.00024,2]
[327568993,1716238241527,-240.30107874,0.00024028,2]
[327568994,1716238241536,-240.30107874,0.00024038,2]
[327568995,1716238241545,-164.1962186,0.0002411,2]
[327568996,1716238241556,-240.30107874,0.00024114,2]
[327568997,1716238241566,-240.30107874,0.00024146,2]
[327568998,1716238241576,-314.052105,0.00024148,4]
[327568999,1716238241586,-314.052105,0.00024178,2]
[327569000,1716238241596,-240.30107874,0.00024187,2]
[327569001,1716238241606,-240.30107874,0.00024227,2]
[327569002,1716238241616,-180.0,0.0002423,2]
[327569003,1716238241626,-314.052105,0.00024448,4]
[327569004,1716238241637,-178.86,0.00024518,2]
[327569005,1716238241648,-240.30107874,0.00024565,2]
[327569006,1716238241660,-164.1962186,0.00024582,2]
[327569007,1716238241670,-3068.52,0.00024623,2]
[327569008,1716238241679,-152.84540225,0.00024645,2]
[327569009,1716238241688,-250.0,0.00024658,2]
[327569010,1716238241698,-166.66666667,0.00024748,2]
[327569011,1716238241865,-314.052105,0.00024748,4]
[327569012,1716238241874,-207.02210169,0.00024766,2]
[327569013,1716238241884,-900.0,0.000248,9]
[327569014,1716238241894,-11463.96314034,0.00024807,5]
[327569015,1716238241903,-164.1962186,0.00024852,2]
[327569016,1716238241914,-1400.0,0.000249,9]
[327569017,1716238241925,-192.98324231,0.000249,2]
[327569018,1716238241934,-240.30107874,0.00024948,2]
[327569019,1716238241943,-204.0,0.0002497,15]
[327569020,1716238241952,-625.0,0.0002497,15]
[327569021,1716238241961,-787.0,0.0002497,15]
[327569022,1716238241974,-204.0,0.0002498,15]
[327569023,1716238241983,-625.0,0.0002498,15]
[327569024,1716238241992,-787.0,0.0002498,15]
[327569025,1716238242002,-207.02210169,0.00024983,2]
[327569026,1716238242011,-9152.26459409,0.0002499,2]
[327569027,1716238242021,-204.0,0.0002499,15]
[327569028,1716238242031,-625.0,0.0002499,15]
[327569029,1716238242039,-281.5,0.0002499,15]
[327569030,1716238242048,-787.0,0.0002499,15]
[327569031,1716238242058,-1198.64768723,0.00025,2]
[327569032,1716238242067,-926.52234979,0.00025,2]
[327569033,1716238242077,-155.0,0.00025,2]
[327569034,1716238242087,-155.0,0.00025,2]
[327569035,1716238242096,-224.21566957,0.00025,2]
[327569036,1716238242105,-1271.64454444,0.00025,2]
[327569037,1716238242114,-336.38623526,0.00025,7]
[327569038,1716238242124,-155.0,0.00025,2]
[327569039,1716238242133,-575.44188659,0.00025,14]
[327569040,1716238242143,-3147.98936337,0.00025,2]
[327569041,1716238242152,-1850.0,0.00025,2]
[327569042,1716238242162,-1484498.3984393,0.00025,2]
[327569043,1716238242172,-1003.82,0.00025,2]
[327569044,1716238242182,-275.5,0.00025,2]
[327569045,1716238242191,-614.04,0.00025,2]
[327569046,1716238242201,-300.0,0.00025,7]
[327569047,1716238242211,-167.0,0.0002502,2]
[327569048,1716238242224,-153.0641054,0.00025079,2]
[327569049,1716238242233,-164.1962186,0.00025124,2]
[327569050,1716238242242,-314.052105,0.00025148,8]
[327569051,1716238242251,-314.052105,0.00025178,2]
[327569052,1716238242260,-2617.54872489,0.00025197,2]
[327569053,1716238242270,-207.02210169,0.00025231,2]
[327569054,1716238242278,-207.02210169,0.00025244,2]
[327569056,1716238242289,-240.30107874,0.00025303,2]
[327569057,1716238242298,-155.57833924,0.00025337,2]
[327569058,1716238242308,-152.09664863,0.00025403,2]
[327569059,1716238242318,-314.052105,0.00025448,8]
[327569060,1716238242328,-314.052105,0.00025748,8]
[327569061,1716238242337,-240.30107874,0.00025809,2]
[327569062,1716238242348,-167.0,0.00025846,2]
[327569063,1716238242357,-158.48,0.0002589,2]
[327569064,1716238242366,-1900.0,0.000259,9]
[327569065,1716238242376,-164.1962186,0.00025936,2]
[327569066,1716238242385,-311.21771014,0.00026,2]
[327569067,1716238242396,-275.5,0.00026,2]
[327569068,1716238242409,-1003.82,0.0002601,2]
[327569069,1716238242418,-207.02210169,0.00026072,2]
[327569070,1716238242428,-314.052105,0.00026148,10]
[327569071,1716238242437,-219.88,0.00026201,2]
[327569072,1716238242447,-984.946,0.00026287,2]
[327569073,1716238242456,-2160.0,0.00026287,2]
[327569074,1716238242468,-2160.0,0.00026287,2]
[327569075,1716238242478,-1400.0,0.00026287,2]
[327569076,1716238242487,-544.0,0.00026287,2]
[327569077,1716238242499,-1262.0,0.00026287,2]
[327569078,1716238242508,-1642.0,0.00026287,2]
[327569079,1716238242517,-1225.0,0.00026287,2]
[327569080,1716238242527,-1128.0,0.00026287,2]
[327569081,1716238242536,-809.0,0.00026287,2]
[327569082,1716238242546,-169.944,0.00026287,2]
[327569083,1716238242555,-592.369,0.00026287,2]
[327569084,1716238242565,-620.596,0.00026287,2]
[327569085,1716238242575,-439.0,0.00026287,2]
[327569086,1716238242584,-153.805,0.00026287,2]
[327569087,1716238242594,-1647.0,0.00026287,2]
[327569088,1716238242604,-156.172,0.00026287,2]
[327569089,1716238242614,-1977.0,0.00026287,2]
[327569090,1716238242623,-219.0,0.00026287,2]
[327569091,1716238242632,-1138.0,0.00026287,2]
[327569092,1716238242641,-3160.0,0.00026287,2]
[327569093,1716238242650,-5754.0,0.00026287,2]
[327569094,1716238242660,-150.0,0.00026287,2]
[327569095,1716238242669,-289.0,0.00026287,2]
[327569096,1716238242679,-37862.0,0.00026287,2]
[327569097,1716238242688,-5131.0,0.00026287,2]
[327569098,1716238242698,-1500.885,0.00026287,2]
[327569099,1716238242707,-1060.0,0.00026287,2]
[327569100,1716238242718,-150.0,0.00026287,2]
[327569101,1716238242727,-169.1813528,0.00026289,2]
[327569102,1716238242736,-3000.0,0.000263,2]
[327569103,1716238242745,-153.0641054,0.00026369,2]
[327569104,1716238242756,-1000.0,0.00026432,2]
[327569105,1716238242766,-207.02210169,0.00026441,2]
[327569106,1716238242776,-314.052105,0.00026448,10]
[327569107,1716238242785,-240.30107874,0.0002648,2]
[327569108,1716238242794,-437.753273,0.00026637,2]
[327569109,1716238242804,-310.276516,0.00026637,2]
[327569110,1716238242813,-321.039999,0.00026637,2]
[327569111,1716238242823,-460.344156,0.00026637,2]
[327569112,1716238242833,-154.65566,0.00026637,2]
[327569113,1716238242844,-150.836958,0.00026637,2]
[327569114,1716238242853,-18780.872207,0.00026637,2]
[327569115,1716238242864,-6951.80655,0.00026637,2]
[327569116,1716238242874,-167.0,0.00026671,2]
[327569117,1716238242883,-158.84348738,0.00026678,2]
[327569118,1716238242893,-5000.0,0.00026678,2]
[327569119,1716238242903,-5000.0,0.00026678,2]
[327569120,1716238242912,-5000.0,0.00026678,2]
[327569121,1716238242922,-5000.0,0.00026678,2]
[327569122,1716238242932,-5000.0,0.00026678,2]
[327569123,1716238242941,-169.00998556,0.00026694,2]
[327569124,1716238242951,-404.4,0.00026712,2]
[327569125,1716238242960,-314.052105,0.00026748,10]
[327569126,1716238242973,-315.26,0.00026921,2]
[327569127,1716238242982,-286.98,0.00026921,2]
[327569129,1716238242992,-437.753273,0.0002697,2]
[327569130,1716238243002,-310.276516,0.0002697,2]
[327569132,1716238243011,-321.039999,0.0002697,2]
[327569134,1716238243021,-460.344156,0.0002697,2]
[327569135,1716238243030,-150.836958,0.0002697,2]
[327569136,1716238243039,-18780.872207,0.0002697,2]
[327569137,1716238243049,-6951.80655,0.0002697,2]
[327569138,1716238243059,-1900.0,0.00027,2]
[327569139,1716238243068,-207.02210169,0.00027002,2]
[327569140,1716238243078,-153.0641054,0.00027006,2]
[327569141,1716238243087,-1003.82,0.0002702,2]
[327569142,1716238243101,-207.02210169,0.00027044,2]
[327569143,1716238243110,-207.02210169,0.00027079,2]
[327569144,1716238243126,-314.052105,0.00027148,14]
[327569145,1716238243135,-153.0641054,0.00027189,2]
[327569146,1716238243144,-207.02210169,0.00027244,2]
[327569147,1716238243154,-437.753273,0.00027303,2]
[327569148,1716238243164,-310.276516,0.00027303,2]
[327569149,1716238243173,-321.039999,0.00027303,2]
[327569150,1716238243183,-460.344156,0.00027303,2]
[327569151,1716238243192,-150.836958,0.00027303,2]
[327569152,1716238243201,-18780.872207,0.00027303,2]
[327569153,1716238243210,-6951.80655,0.00027303,2]
[327569154,1716238243221,-804.75282659,0.0002739,2]
[327569155,1716238243231,-153.0641054,0.00027394,2]
[327569156,1716238243240,-249.04337147,0.00027394,2]
[327569157,1716238243250,-219.73534414,0.00027394,4]
[327569158,1716238243259,-960.0,0.000274,2]
[327569162,1716238243268,-373.65,0.000274,2]
[327569164,1716238243277,-373.65,0.000274,2]
[327569167,1716238243287,-373.65,0.000274,2]
[327569170,1716238243296,-373.65,0.000274,2]
[327569172,1716238243305,-373.65,0.000274,2]
[327569174,1716238243315,-373.65,0.000274,2]
[327569175,1716238243324,-373.65,0.000274,2]
[327569176,1716238243333,-373.65,0.000274,2]
[327569177,1716238243342,-373.65,0.000274,2]
[327569178,1716238243351,-373.65,0.000274,2]
[327569179,1716238243360,-314.052105,0.00027448,14]
[327569180,1716238243370,-207.02210169,0.00027477,2]
[327569181,1716238243379,-155.79488318,0.00027495,2]
[327569182,1716238243389,-207.02210169,0.00027495,2]
[327569183,1716238243398,-167.0,0.00027497,2]
[327569184,1716238243409,-14060.285383,0.000275,30]
[327569185,1716238243419,-152.09664865,0.00027511,2]
[327569186,1716238243432,-500.0,0.00027602,2]
[327569190,1716238243442,-500.0,0.00027602,2]
[327569194,1716238243451,-500.0,0.00027602,2]
[327569197,1716238243461,-500.0,0.00027602,2]
[327569201,1716238243474,-437.753273,0.00027636,2]
[327569205,1716238243483,-310.276516,0.00027636,2]
[327569209,1716238243492,-321.039999,0.00027636,2]
[327569213,1716238243502,-460.344156,0.00027636,2]
[327569217,1716238243511,-150.836958,0.00027636,2]
[327569220,1716238243520,-18780.872207,0.00027636,2]
[327569223,1716238243530,-6951.80655,0.00027636,2]
[327569225,1716238243540,-166.66666667,0.0002764,2]
[327569228,1716238243549,-204.0,0.0002766,2]
[327569231,1716238243558,-314.052105,0.00027748,14]
[327569234,1716238243567,-152.84540225,0.00027843,2]
[327569237,1716238243577,-2617.54872489,0.00027845,2]
[327569240,1716238243587,-164.1962186,0.00027847,2]
[327569242,1716238243596,-437.753273,0.00027969,2]
[327569244,1716238243606,-310.276516,0.00027969,2]
[327569246,1716238243616,-321.039999,0.00027969,2]
[327569248,1716238243626,-460.344156,0.00027969,2]
[327569250,1716238243635,-150.836958,0.00027969,2]
[327569254,1716238243645,-18780.872207,0.00027969,2]
[327569257,1716238243655,-6951.80655,0.00027969,2]
[327569261,1716238243664,-240.30107874,0.00028029,2]
[327569266,1716238243673,-1003.82,0.0002803,2]
[327569270,1716238243683,-240.30107874,0.00028036,2]
[327569273,1716238243693,-150.859313,0.00028059,2]
[327569275,1716238243702,-240.30107874,0.00028086,2]
[327569277,1716238243712,-314.052105,0.00028148,20]
[327569280,1716238243723,-240.30107874,0.00028259,2]
[327569282,1716238243732,-168.24161346,0.00028285,2]
[327569284,1716238243742,-240.30107874,0.00028321,2]
[327569286,1716238243751,-167.0,0.00028323,2]
[327569288,1716238243760,-240.30107874,0.00028366,2]
[327569290,1716238243770,-321.27328421,0.00028415,2]
[327569292,1716238243780,-314.052105,0.00028448,20]
[327569294,1716238243790,-166.66666666,0.00028451,2]
[327569296,1716238243799,-219.88,0.00028465,2]
[327569298,1716238243809,-150.859313,0.00028527,2]
[327569300,1716238243819,-1773.05966905,0.00028564,2]
[327569303,1716238243828,-164.19621866,0.00028572,2]
[327569305,1716238243839,-204.0,0.0002858,2]
[327569309,1716238243849,-167.9037705,0.00028621,2]
[327569312,1716238243858,-500.0,0.00028698,2]
[327569314,1716238243868,-500.0,0.00028698,2]
[327569316,1716238243878,-500.0,0.00028698,2]
[327569318,1716238243887,-314.052105,0.00028748,20]
[327569320,1716238243896,-155.57833924,0.00028815,2]
[327569322,1716238243906,-19586.89438405,0.000289,2]
[327569324,1716238243916,-2400.0,0.000289,10]
[327569326,1716238243925,-150.85608182,0.000289,5]
[327569329,1716238243934,-3615.58453862,0.000289,2]
[327569332,1716238243943,-694.80187144,0.000289,2]
[327569335,1716238243953,-168.67349144,0.000289,2]
[327569338,1716238243963,-1249.03609469,0.000289,2]
[327569341,1716238243973,-155.79488318,0.00028941,2]
[327569343,1716238243982,-240.30107874,0.00028992,2]
[327569345,1716238243992,-150.859313,0.00028994,2]
[327569346,1716238244001,-1751563.19889358,0.00028999,15]
[327569347,1716238244012,-150.0,0.00028999,2]
[327569348,1716238244021,-5000.0,0.00029,2]
[327569349,1716238244031,-1481.71970581,0.00029,2]
[327569350,1716238244040,-500000.0,0.00029,2]
[327569351,1716238244050,-1920.0,0.00029,2]
[327569352,1716238244059,-1950.0,0.00029,2]
[327569353,1716238244068,-500.0,0.00029,2]
[327569354,1716238244078,-500.0,0.00029,2]
[327569355,1716238244087,-500.0,0.00029,2]
[327569356,1716238244222,-500.0,0.00029,2]
[327569357,1716238244247,-500.0,0.00029,2]
[327569359,1716238244256,-500.0,0.00029,2]
[327569361,1716238244266,-685.61,0.00029,2]
[327569363,1716238244276,-713.17,0.00029,2]
[327569365,1716238244286,-1003.82,0.0002904,2]
[327569367,1716238244296,-167.9037705,0.00029118,2]
[327569369,1716238244306,-314.052105,0.00029148,22]
[327569371,1716238244315,-167.0,0.00029149,2]
[327569373,1716238244325,-155.57833924,0.0002917,2]
[327569375,1716238244335,-207.02210169,0.00029229,2]
[327569377,1716238244344,-153.72660856,0.00029243,2]
[327569379,1716238244354,-974.0,0.00029287,2]
[327569381,1716238244364,-861.667,0.00029287,2]
[327569383,1716238244373,-861.667,0.00029287,2]
[327569385,1716238244383,-816.0,0.00029287,2]
[327569387,1716238244393,-1262.0,0.00029287,2]
[327569389,1716238244404,-544.0,0.00029287,2]
[327569391,1716238244419,-1225.0,0.00029287,2]
[327569393,1716238244431,-991.153,0.00029287,2]
[327569395,1716238244441,-369.332,0.00029287,2]
[327569397,1716238244452,-613.0,0.00029287,2]
[327569399,1716238244461,-255.877,0.00029287,2]
[327569401,1716238244472,-215.0,0.00029287,2]
[327569403,1716238244481,-1137.0,0.00029287,2]
[327569405,1716238244490,-3159.0,0.00029287,2]
[327569407,1716238244501,-5131.0,0.00029287,2]
[327569409,1716238244511,-153.30748745,0.00029365,2]
[327569413,1716238244520,-1000.0,0.00029369,2]
[327569415,1716238244530,-314.052105,0.00029448,22]
[327569417,1716238244539,-150.859313,0.00029462,2]
[327569419,1716238244548,-204.0,0.000295,2]
[327569421,1716238244558,-225.69631253,0.000295,3]
[327569423,1716238244568,-167.71943581,0.000295,2]
[327569425,1716238244577,-168.24161348,0.00029623,2]
[327569427,1716238244586,-240.30107874,0.00029669,2]
[327569428,1716238244595,-207.02210169,0.0002969,2]
[327569430,1716238244604,-214.0,0.000297,2]
[327569433,1716238244613,-158.09252708,0.00029706,2]
[327569434,1716238244622,-314.052105,0.00029748,24]
[327569437,1716238244632,-200.0,0.0002976,2]
[327569439,1716238244641,-500.0,0.00029794,2]
[327569441,1716238244650,-500.0,0.00029794,2]
[327569443,1716238244659,-2500.0,0.00029799,5]
[327569445,1716238244668,-936.45809828,0.00029799,5]
[327569447,1716238244677,-988.0,0.00029799,2]
[327569449,1716238244686,-1076.6,0.00029799,5]
[327569451,1716238244696,-240.30107903,0.0002984,2]
[327569452,1716238244705,-207.02210173,0.00029884,2]
[327569455,1716238244716,-685.61,0.000299,2]
[327569457,1716238244726,-713.17,0.000299,2]
[327569458,1716238244735,-155.79488318,0.0002993,2]
[327569460,1716238244744,-4936.93836324,0.00029998,2]
[327569463,1716238244754,-617.67768276,0.00029999,2]
[327569465,1716238244765,-186.42146792,0.00029999,2]
[327569467,1716238244775,-264.71900689,0.00029999,2]
[327569469,1716238244785,-340.92789138,0.00029999,2]
[327569471,1716238244794,-3346.16771975,0.0003,4]
[327569473,1716238244803,-8124.63643347,0.0003,2]
[327569475,1716238244812,-164.41525891,0.0003,2]
[327569477,1716238244822,-2807.27951792,0.0003,2]
[327569479,1716238244830,-1000.0,0.0003,7]
[327569481,1716238244839,-10245.49867247,0.0003,4]
[327569482,1716238244848,-239.0,0.0003,18]
[327569484,1716238244857,-1003.82,0.0003005,2]
[327569486,1716238244866,-314.052105,0.00030148,26]
[327569488,1716238244877,-19586.89438401,0.00030327,2]
[327569491,1716238244887,-204.0,0.0003041,2]
[327569493,1716238244897,-314.052105,0.00030448,26]
[327569494,1716238244906,-2617.54872489,0.00030493,2]
[327569496,1716238244915,-239.0,0.000305,19]
[327569498,1716238244924,-150.0,0.000305,6]
[327569500,1716238244934,-178.86,0.00030647,120]
[327569502,1716238244944,-219.88,0.00030729,2]
[327569505,1716238244953,-314.052105,0.00030748,28]
[327569507,1716238244963,-600.0,0.0003089,10]
[327569509,1716238244973,-358.80045503,0.0003089,10]
[327569511,1716238244983,-685.61,0.000309,2]
[327569513,1716238244992,-713.17,0.000309,2]
[327569515,1716238245002,-239.0,0.00031,19]
[327569517,1716238245011,-2000.0,0.00031,2]
[327569519,1716238245020,-150.0,0.00031,6]
[327569520,1716238245030,-1003.82,0.0003106,2]
[327569522,1716238245039,-353.0,0.000311,2]
[327569524,1716238245048,-1000.0,0.000311,2]
[327569527,1716238245058,-223.0,0.000311,2]
[327569529,1716238245067,-314.052105,0.00031148,28]
[327569531,1716238245077,-988.0,0.00031169,4]
[327569533,1716238245086,-200.0,0.00031247,15]
[327569535,1716238245096,-685.61,0.000313,2]
[327569537,1716238245106,-713.17,0.000313,2]
[327569539,1716238245116,-204.0,0.0003133,2]
[327569541,1716238245127,-314.052105,0.00031448,28]
[327569543,1716238245136,-239.0,0.000315,20]
[327569545,1716238245146,-150.0,0.000315,7]
[327569547,1716238245156,-150.0,0.000315,7]
[327569549,1716238245164,-150.23481315,0.000315,7]
[327569551,1716238245173,-150.17203988,0.000315,7]
[327569553,1716238245183,-267.83555233,0.000315,7]
[327569555,1716238245192,-150.28957263,0.000315,7]
[327569557,1716238245202,-150.0,0.000315,7]
[327569559,1716238245212,-235.33348451,0.000315,7]
[327569561,1716238245223,-150.43305556,0.000315,7]
[327569563,1716238245232,-158.67723058,0.000315,7]
[327569565,1716238245241,-211.42942677,0.000315,7]
[327569567,1716238245250,-150.0,0.000315,7]
[327569569,1716238245259,-314.052105,0.00031748,30]
[327569571,1716238245269,-19586.89438401,0.00031754,3]
[327569573,1716238245278,-1920.79988356,0.000318,2]
[327569575,1716238245288,-151.0,0.0003186,2]
[327569577,1716238245298,-155.0,0.00032,4]
[327569579,1716238245306,-239.0,0.00032,20]
[327569581,1716238245316,-685.61,0.00032,2]
[327569583,1716238245326,-713.17,0.00032,2]
[327569585,1716238245335,-150.0,0.00032,7]
[327569587,1716238245344,-1003.82,0.0003207,2]
[327569589,1716238245354,-314.052105,0.00032148,30]
[327569591,1716238245363,-200.0,0.00032239,2]
[327569593,1716238245372,-1000.0,0.00032239,15]
[327569595,1716238245382,-500.0,0.00032239,2]
[327569597,1716238245390,-200.0,0.00032239,2]
[327569599,1716238245400,-209.0,0.0003225,2]
[327569601,1716238245414,-204.0,0.0003225,2]
[327569603,1716238245423,-1108.032,0.00032287,2]
[327569605,1716238245432,-784.0,0.00032287,2]
[327569607,1716238245441,-1000.0,0.00032306,2]
[327569609,1716238245453,-314.052105,0.00032448,32]
[327569611,1716238245462,-210.92023681,0.00032462,4]
[327569613,1716238245474,-239.0,0.000325,21]
[327569614,1716238245483,-150.0,0.000325,7]
[327569615,1716238245494,-988.0,0.00032539,6]
[327569616,1716238245503,-150.0,0.00032667,7]
[327569617,1716238245512,-314.052105,0.00032748,32]
[327569618,1716238245522,-169.0,0.00032899,5]
[327569619,1716238245533,-61963.43544177,0.000329,30]
[327569620,1716238245542,-500.0,0.000329,2]
[327569621,1716238245551,-500.0,0.000329,2]
[327569622,1716238245560,-960.71008522,0.000329,2]
[327569624,1716238245570,-219.88,0.00032993,2]
[327569626,1716238245580,-19691.63819154,0.00032997,2]
[327569628,1716238245590,-15075.62030489,0.00033,2]
[327569630,1716238245599,-239.0,0.00033,22]
[327569632,1716238245608,-2050.0,0.00033,2]
[327569634,1716238245618,-480675.80287933,0.00033,10]
[327569636,1716238245627,-150.0,0.00033,7]
[327569638,1716238245637,-1003.82,0.0003308,2]
[327569640,1716238245647,-2617.54872489,0.00033142,2]
[327569642,1716238245656,-314.052105,0.00033148,32]
[327569644,1716238245666,-191.0,0.00033151,120]
[327569646,1716238245675,-730.75,0.00033151,120]
[327569648,1716238245684,-209.0,0.0003317,2]
[327569650,1716238245694,-204.0,0.0003317,2]
[327569652,1716238245703,-19586.89438401,0.00033181,5]
[327569654,1716238245712,-150.0,0.0003325,7]
[327569656,1716238245724,-315.26,0.00033396,2]
[327569658,1716238245733,-286.98,0.00033396,2]
[327569660,1716238245743,-314.052105,0.00033448,32]
[327569662,1716238245752,-239.0,0.000335,22]
[327569664,1716238245762,-4910.26,0.000335,2]
[327569666,1716238245771,-4910.26,0.000335,2]
[327569668,1716238245780,-4910.26,0.000335,2]
[327569670,1716238245790,-4910.26,0.000335,2]
[327569672,1716238245799,-4910.26,0.000335,2]
[327569675,1716238245809,-4910.26,0.000335,2]
[327569677,1716238245819,-4910.26,0.000335,2]
[327569678,1716238245828,-4910.26,0.000335,2]
[327569680,1716238245838,-4910.26,0.000335,2]
[327569682,1716238245847,-4910.26,0.000335,2]
[327569685,1716238245857,-4910.26,0.000335,2]
[327569687,1716238245866,-4910.26,0.000335,2]